bitfinex/quotes_SOLUSD_20241122
["timestamp","ask_amount","ask_price","bid_price","bid_amount"]
[1732304799069,12.16648324,252.83,252.56,16.81]
[1732304799290,23.776884,252.82,252.56,16.81]
[1732304800080,23.776884,252.82,252.58,2.5]
[1732304800484,23.776884,252.82,252.56,16.81]
[1732304801072,23.776884,252.82,252.58,2.5]
[1732304801369,23.776884,252.82,252.56,16.81]
[1732304802475,35.94336724,252.82,252.56,16.81]
[1732304802679,23.776884,252.8,252.56,16.81]
[1732304802875,26.9251541,252.8,252.56,16.81]
[1732304803787,26.9251541,252.8,252.56,21.20930651]
[1732304803987,18.031,252.81,252.58,2.5]
[1732304804193,18.031,252.81,252.59,4.39930651]
[1732304804895,18.031,252.81,252.6,2.5]
[1732304805068,18.031,252.81,252.6,6.89930651]
[1732304806193,23.776884,252.8,252.61,3.942]
[1732304807874,23.776884,252.8,252.63,2.5]
[1732304808286,23.776884,252.8,252.63,6.442]
[1732304808470,23.776884,252.8,252.6,9.39930651]
[1732304808788,23.776884,252.8,252.6,4.39930651]
[1732304809091,23.776884,252.8,252.56,16.81]
[1732304809395,23.776884,252.78,252.56,16.81]
[1732304812077,6.7991,252.79,252.58,2.5]
[1732304812671,6.7991,252.79,252.59,4.39930651]
[1732304813280,23.776884,252.78,252.59,4.39930651]
[1732304813475,23.776884,252.78,252.56,23.94261496]
[1732304813695,23.776884,252.78,252.56,21.44261496]
[1732304815305,23.776884,252.78,252.56,25.84192147]
[1732304815599,23.776884,252.78,252.57,4.39930651]
[1732304816186,23.776884,252.78,252.56,16.81]
[1732304817607,23.776884,252.78,252.5,27.43982147]
[1732304817783,23.776884,252.78,252.5,29.93982147]
[1732304818799,23.776884,252.78,252.51,4.39930651]
[1732304818990,23.776884,252.78,252.51,9.03192147]
[1732304819799,23.776884,252.78,252.52,2.5]
[1732304820005,23.776884,252.78,252.53,4.39930651]
[1732304820302,23.776884,252.78,252.53,9.03192147]
[1732304820800,23.776884,252.78,252.53,4.39930651]
[1732304821179,6.7991,252.79,252.58,3.942]
[1732304821402,6.7991,252.79,252.59,4.39930651]
[1732304821711,6.7991,252.79,252.54,4.63261496]
[1732304822081,6.7991,252.79,252.55,4.39930651]
[1732304822487,23.776884,252.78,252.55,4.39930651]
[1732304822689,23.776884,252.78,252.55,3.94180651]
[1732304823685,23.776884,252.78,252.54,4.63261496]
[1732304824006,23.776884,252.76,252.51,2.5]
[1732304824204,23.776884,252.74,252.51,2.5]
[1732304824991,23.776884,252.74,252.53,2.5]
[1732304825192,23.776884,252.74,252.54,4.36626485]
[1732304825390,6.508,252.75,252.56,2.5]
[1732304825719,6.508,252.75,252.59,2.5]
[1732304826013,6.508,252.75,252.61,5.0]
[1732304826188,6.508,252.75,252.64,2.5]
[1732304826388,19.29333918,252.8,252.66,2.5]
[1732304826608,19.29333918,252.8,252.67,2.5]
[1732304826916,19.29333918,252.8,252.66,4.7245]
[1732304827095,19.21397397,252.85,252.69,2.5]
[1732304827294,19.77865943,252.86,252.69,2.5]
[1732304827504,6.3534,252.88,252.71,2.5]
[1732304827700,6.3534,252.88,252.71,4.7245]
[1732304828312,6.3534,252.88,252.73,2.5]
[1732304829422,23.776884,252.87,252.73,2.5]
[1732304830107,6.3534,252.88,252.75,2.5]
[1732304830310,15.8169,252.94,252.75,2.5]
[1732304830311,19.94016818,252.93,252.77,2.2245]
[1732304830510,19.94016818,252.93,252.77,18.1453]
[1732304830718,19.94016818,252.93,252.79,2.2245]
[1732304831010,19.94016818,252.93,252.79,4.449]
[1732304832313,16.3913,253.01,252.85,5.8e-07]
[1732304832314,19.1315227,253.0,252.85,5.8e-07]
[1732304832519,19.97866046,253.01,252.8,8.99887981]
[1732304832701,19.63639877,252.99,252.77,15.9208]
[1732304832899,19.91189877,252.99,252.77,15.9208]
[1732304833217,19.40315453,252.97,252.77,14.1538]
[1732304833402,23.776884,252.94,252.77,14.1538]
[1732304833598,23.776884,252.92,252.77,14.1538]
[1732304833822,19.71428219,252.91,252.78,4.63261496]
[1732304834115,19.71428219,252.91,252.78,11.22337981]
[1732304834325,19.40315453,252.97,252.8,2.2245]
[1732304834505,19.40315453,252.97,252.8,6.85711496]
[1732304834696,19.40315453,252.97,252.8,4.63261496]
[1732304834998,19.40315453,252.97,252.77,18.52006485]
[1732304835205,19.40315453,252.97,252.78,4.63261496]
[1732304835811,19.94016818,252.93,252.78,4.63261496]
[1732304836121,19.85077885,252.95,252.78,4.63261496]
[1732304836426,19.71428219,252.91,252.77,18.52006485]
[1732304836720,19.71428219,252.91,252.77,14.1538]
[1732304836929,19.93790514,252.89,252.77,14.1538]
[1732304837119,19.71428219,252.91,252.77,14.1538]
[1732304837312,23.776884,252.9,252.77,14.1538]
[1732304837615,19.93790514,252.89,252.77,14.1538]
[1732304837825,19.4556913,252.87,252.77,12.583]
[1732304838025,19.93790514,252.89,252.77,1.76e-06]
[1732304838332,19.21397397,252.85,252.77,1.76e-06]
[1732304838507,19.61841406,252.83,252.77,1.76e-06]
[1732304839225,19.248957,252.81,252.77,1.76e-06]
[1732304839809,19.61841406,252.83,252.77,1.76e-06]
[1732304840038,23.776884,252.84,252.77,1.76e-06]
[1732304840210,19.248957,252.81,252.77,1.76e-06]
[1732304840514,23.776884,252.84,252.77,1.76e-06]
[1732304840515,19.61841406,252.83,252.77,1.76e-06]
[1732304840833,19.248957,252.81,252.77,1.76e-06]
[1732304841132,42.91655074,252.84,252.77,1.76e-06]
[1732304841610,23.776884,252.85,252.77,1.76e-06]
[1732304842036,19.13966674,252.84,252.77,1.76e-06]
[1732304842211,23.776884,252.83,252.77,1.76e-06]
[1732304842932,43.39529806,252.83,252.77,1.76e-06]
[1732304845536,23.776884,252.79,252.77,1.76e-06]
[1732304846347,30.476484,252.78,252.77,1.76e-06]
[1732304846637,34.2461541,252.78,252.77,1.76e-06]
[1732304847322,54.11057156,252.78,252.77,1.76e-06]
[1732304849435,19.29186136,252.72,252.57,15.3158]
[1732304850520,19.87237107,252.74,252.57,15.3158]
[1732304850721,23.91323561,252.74,252.57,15.3158]
[1732304850939,23.91323561,252.74,252.58,4.36626485]
[1732304851128,23.91323561,252.74,252.59,3.942]
[1732304851331,23.91323561,252.74,252.61,3.942]
[1732304851528,19.29186136,252.72,252.61,3.5058]
[1732304852130,23.776884,252.71,252.61,3.5058]
[1732304852328,23.776884,252.71,252.6,3.0696]
[1732304852526,23.776884,252.69,252.6,3.0696]
[1732304852737,23.776884,252.65,252.6,3.0696]
[1732304852941,42.8436783,252.65,252.6,3.0696]
[1732304853336,42.8436783,252.65,252.52,3.0696]
[1732304853937,42.8436783,252.65,252.54,3.0696]
[1732304854243,42.8436783,252.65,252.56,3.0696]
[1732304854439,42.8436783,252.65,252.56,2.7259]
[1732304854741,19.21621371,252.73,252.58,2.3822]
[1732304854933,19.06841596,252.71,252.58,2.3822]
[1732304855131,19.21621371,252.73,252.59,4.52368594]
[1732304855362,19.33304008,252.76,252.59,4.52368594]
[1732304855733,19.33304008,252.76,252.6,3.942]
[1732304855942,19.33304008,252.76,252.6,3.6696]
[1732304856555,23.776884,252.73,252.6,3.6696]
[1732304856852,19.29186136,252.72,252.6,3.6696]
[1732304857055,19.07798253,252.77,252.61,1.02e-06]
[1732304857232,19.07798253,252.77,252.61,4.52368696]
[1732304857637,19.07798253,252.77,252.62,3.942]
[1732304857858,19.07798253,252.77,252.62,8.46568594]
[1732304858238,19.07798253,252.77,252.61,1.02e-06]
[1732304858557,19.05812783,252.75,252.61,1.02e-06]
[1732304858736,19.05812783,252.75,252.61,6.7e-07]
[1732304859130,23.776884,252.74,252.61,6.7e-07]
[1732304859761,19.06841596,252.71,252.61,3.94200067]
[1732304860229,19.06841596,252.71,252.6,3.8482]
[1732304860637,19.06841596,252.71,252.6,1.62e-06]
[1732304860849,19.07798253,252.77,252.6,4.19697531]
[1732304861049,19.29333918,252.8,252.6,4.19697531]
[1732304861372,19.29333918,252.8,252.6,201.06745715]
[1732304861553,19.77540361,252.82,252.54,3.75835699]
[1732304861858,19.77540361,252.82,252.55,8.39493508]
[1732304862043,19.86441746,252.78,252.57,3.942]
[1732304862245,19.86441746,252.78,252.57,0.59332823]
[1732304862441,19.29333918,252.8,252.57,0.59332823]
[1732304862639,19.33304008,252.76,252.51,3.942]
[1732304862954,19.87237107,252.74,252.51,7.70035699]
[1732304863162,19.29186136,252.72,252.52,0.59342179]
[1732304863452,23.776884,252.71,252.53,11.8695]
[1732304863653,19.63791155,252.7,252.54,0.59348532]
[1732304864041,23.776884,252.69,252.54,0.59348532]
[1732304864236,19.59558528,252.66,252.56,3.942]
[1732304864564,42.8436783,252.65,252.56,3.942]
[1732304864934,19.59558528,252.66,252.56,3.942]
[1732304865447,23.776884,252.65,252.56,3.942]
[1732304865950,42.8436783,252.65,252.56,3.942]
[1732304866155,42.8436783,252.65,252.54,4.53548532]
[1732304867645,19.0667943,252.65,252.54,4.53548532]
[1732304867856,23.776884,252.72,252.54,4.53548532]
[1732304868476,23.776884,252.72,252.54,3.942]
[1732304868775,43.06874536,252.72,252.54,3.942]
[1732304869273,43.41479555,252.7,252.54,3.942]
[1732304869461,23.776884,252.7,252.54,3.942]
[1732304869776,23.776884,252.7,252.54,4.53550237]
[1732304871757,23.776884,252.7,252.54,10.11419407]
[1732304872366,23.776884,252.7,252.54,3.942]
[1732304872578,23.776884,252.7,252.54,10.11419407]
[1732304872755,23.776884,252.7,252.54,3.942]
[1732304873156,23.776884,252.7,252.54,10.11419407]
[1732304873376,23.776884,252.7,252.54,3.942]
[1732304876057,23.776884,252.71,252.54,3.942]
[1732304876565,23.776884,252.74,252.54,3.942]
[1732304876759,27.81774854,252.74,252.54,3.942]
[1732304878369,28.41101585,252.74,252.54,3.942]
[1732304878561,30.91101527,252.74,252.54,3.942]
[1732304878763,27.81774854,252.74,252.54,3.942]
[1732304879189,4.04086454,252.73,252.54,3.942]
[1732304879359,23.776884,252.72,252.54,3.942]
[1732304880086,47.1096099,252.72,252.54,3.942]
[1732304881460,23.776884,252.7,252.54,3.942]
[1732304881663,23.776884,252.7,252.54,4.53557147]
[1732304882380,23.776884,252.7,252.54,3.942]
[1732304883272,23.776884,252.7,252.55,0.59349603]
[1732304884065,23.776884,252.7,252.54,3.942]
[1732304884266,23.776884,252.7,252.54,4.53547021]
[1732304884461,6.0088,252.76,252.54,4.53547021]
[1732304884681,15.4517,252.77,252.54,10.70766428]
[1732304885169,19.75119232,252.77,252.54,4.53547021]
[1732304885489,4.29949232,252.76,252.54,4.53547021]
[1732304885987,23.776884,252.75,252.54,4.53547021]
[1732304886378,23.776884,252.75,252.54,3.942]
[1732304886767,23.776884,252.74,252.54,3.942]
[1732304887071,23.776884,252.74,252.55,0.59348028]
[1732304887585,23.776884,252.74,252.56,3.942]
[1732304888994,23.776884,252.74,252.55,3.942]
[1732304889489,23.776884,252.74,252.55,10.11419407]
[1732304890074,23.776884,252.74,252.55,3.942]
[1732304890674,23.776884,252.74,252.55,10.11419407]
[1732304890871,23.776884,252.74,252.55,3.942]
[1732304891268,23.776884,252.74,252.56,0.59350415]
[1732304891471,23.776884,252.74,252.57,3.942]
[1732304891671,23.776884,252.74,252.58,0.59345401]
[1732304892101,4.29949232,252.75,252.59,3.942]
[1732304892392,6.2149,252.82,252.61,3.942]
[1732304892591,4.29949232,252.81,252.61,3.942]
[1732304892895,4.29949232,252.81,252.61,30.11419407]
[1732304893096,0.59326731,252.81,252.6,6.17219407]
[1732304893396,3.09326673,252.81,252.59,6.17219407]
[1732304893581,2.49999942,252.79,252.59,6.17219407]
[1732304893976,23.776884,252.78,252.59,6.17219407]
[1732304894175,23.776884,252.78,252.59,3.943]
[1732304894773,23.776884,252.8,252.59,10.11519407]
[1732304895071,23.776884,252.76,252.59,10.11519407]
[1732304895270,23.776884,252.76,252.58,3.943]
[1732304895684,23.776884,252.76,252.58,23.943]
[1732304895892,23.776884,252.76,252.58,3.943]
[1732304896088,26.276884,252.73,252.55,203.43778393]
[1732304896393,23.776884,252.71,252.55,6.17219407]
[1732304896593,23.776884,252.69,252.53,14.09969407]
[1732304897295,23.776884,252.71,252.53,7.9275]
[1732304897596,23.776884,252.69,252.54,6.17219407]
[1732304897800,23.776884,252.69,252.53,14.09969407]
[1732304897996,23.776884,252.69,252.54,6.17219407]
[1732304898711,6.0924,252.76,252.55,6.17219407]
[1732304899011,6.0924,252.76,252.57,6.17219407]
[1732304899200,6.0924,252.76,252.57,10.11519407]
[1732304899496,6.0924,252.76,252.57,20.0]
[1732304900084,23.776884,252.75,252.57,20.0]
[1732304900302,23.776884,252.75,252.57,30.11519407]
[1732304900703,23.776884,252.75,252.58,6.17219407]
[1732304901093,4.29979501,252.81,252.58,6.7656455]
[1732304901286,4.29979501,252.81,252.6,23.943]
[1732304901518,4.29979501,252.81,252.6,30.70852457]
[1732304902504,23.776884,252.8,252.6,30.70852457]
[1732304902687,23.776884,252.8,252.6,24.5363305]
[1732304902888,23.776884,252.8,252.6,23.943]
[1732304903102,23.776884,252.78,252.6,23.943]
[1732304903481,23.776884,252.8,252.6,23.943]
[1732304903687,23.776884,252.77,252.6,20.0]
[1732304903886,23.776884,252.77,252.59,20.0]
[1732304904087,23.776884,252.79,252.59,26.17219407]
[1732304904304,4.17066168,252.79,252.59,26.17219407]
[1732304904609,23.776884,252.78,252.62,20.0]
[1732304904811,4.17066168,252.79,252.63,0.59333692]
[1732304905323,6.0816,252.82,252.63,0.59333692]
[1732304905507,6.0816,252.82,252.64,20.0]
[1732304907120,23.776884,252.81,252.63,20.0]
[1732304907312,23.776884,252.81,252.63,26.17219407]
[1732304907623,27.94754568,252.81,252.63,20.0]
[1732304907929,23.776884,252.79,252.63,20.0]
[1732304908099,23.776884,252.77,252.62,20.0]
[1732304908500,23.776884,252.79,252.62,20.0]
[1732304910010,4.17066168,252.8,252.62,20.0]
[1732304910308,4.17066168,252.8,252.62,30.7084973]
[1732304910502,4.17066168,252.8,252.63,6.17219407]
[1732304910708,6.0816,252.82,252.64,0.59327463]
[1732304911511,23.776884,252.81,252.64,24.53627463]
[1732304912504,23.776884,252.81,252.64,4.53627463]
[1732304913947,23.776884,252.81,252.64,3.943]
[1732304921620,23.776884,252.81,252.66,3.943]
[1732304922338,23.776884,252.83,252.66,3.943]
[1732304923338,27.88897345,252.83,252.66,3.943]
[1732304927731,2.49999942,252.82,252.66,3.943]
[1732304927934,2.49999942,252.8,252.65,23.943]
[1732304928250,23.776884,252.79,252.64,3.943]
[1732304928949,24.37015131,252.81,252.64,3.943]
[1732304929159,23.776884,252.76,252.63,20.0]
[1732304929351,23.776884,252.76,252.61,11.8705]
[1732304929530,30.270984,252.76,252.61,11.8705]
[1732304930223,2.49999942,252.75,252.61,11.8705]
[1732304930429,23.776884,252.74,252.61,11.8705]
[1732304931236,23.776884,252.74,252.61,7.9275]
[1732304932044,23.776884,252.74,252.62,20.0]
[1732304933651,2.49999942,252.72,252.58,20.0]
[1732304933956,23.776884,252.68,252.56,20.0]
[1732304934343,23.776884,252.7,252.56,20.0]
[1732304934541,23.776884,252.68,252.56,20.0]
[1732304934853,23.776884,252.7,252.56,20.0]
[1732304935040,23.776884,252.72,252.56,20.0]
[1732304935246,23.776884,252.72,252.56,26.17219407]
[1732304935429,26.27688342,252.72,252.56,20.0]
[1732304935629,23.776884,252.72,252.56,20.0]
[1732304940934,23.776884,252.72,252.56,39.08758978]
[1732304941335,23.776884,252.72,252.56,45.25978385]
[1732304941535,26.27688342,252.72,252.56,20.0]
[1732304942062,23.776884,252.68,252.56,20.0]
[1732304945971,2.49999942,252.64,252.54,7.9275]
[1732304946172,23.776884,252.63,252.54,7.9275]
[1732304946461,23.776884,252.63,252.48,7.9275]
[1732304947056,23.776884,252.63,252.49,3.943]
[1732304947464,23.776884,252.61,252.49,3.943]
[1732304948039,23.776884,252.61,252.49,23.943]
[1732304949049,23.776884,252.63,252.53,3.943]
[1732304949247,2.49999942,252.69,252.52,20.0]
[1732304949463,6.0901,252.7,252.53,19.15820383]
[1732304949659,6.0901,252.7,252.56,20.0]
[1732304950167,6.0901,252.7,252.57,3.943]
[1732304950570,6.0901,252.7,252.58,20.0]
[1732304950874,16.5453,252.73,252.6,20.0]
[1732304951068,8.73309942,252.76,252.6,47.82921049]
[1732304951069,6.2331,252.76,252.6,47.82921049]
[1732304951369,6.2331,252.76,252.62,20.0]
[1732304951568,6.2331,252.76,252.64,20.0]
[1732304951866,6.2331,252.76,252.63,19.90611277]
[1732304952077,6.2331,252.76,252.64,39.58991267]
[1732304952369,6.2331,252.76,252.64,19.58991267]
[1732304952678,6.2331,252.76,252.64,39.58991267]
[1732304953047,23.776884,252.78,252.61,23.943]
[1732304953969,6.2331,252.82,252.64,3.943]
[1732304954175,6.2331,252.82,252.66,23.943]
[1732304954468,6.2331,252.82,252.66,20.0]
[1732304954644,6.2331,252.82,252.68,20.0]
[1732304954847,6.2331,252.82,252.71,19.89063268]
[1732304955043,6.2331,252.82,252.74,20.0]
[1732304955249,15.0152,252.85,252.74,20.0]
[1732304956162,15.0152,252.85,252.67,23.776884]
[1732304956368,17.51519942,252.85,252.66,20.0]
[1732304956552,17.51519942,252.85,252.68,20.0]
[1732304956753,23.776884,252.84,252.7,39.82453425]
[1732304956951,23.776884,252.84,252.69,19.84956258]
[1732304957152,23.776884,252.84,252.7,39.82453425]
[1732304957373,23.776884,252.8,252.7,20.0]
[1732304957582,2.5,252.79,252.65,216.32309116]
[1732304957967,23.776884,252.8,252.65,216.32309116]
[1732304958484,23.776884,252.82,252.65,197.26558986]
[1732304959083,23.776884,252.82,252.66,20.0]
[1732304959473,26.27688342,252.8,252.66,20.0]
[1732304959788,6.5391,252.79,252.66,20.0]
[1732304961565,6.5391,252.79,252.68,19.07225641]
[1732304961863,6.5391,252.79,252.68,20.0]
[1732304962079,6.5391,252.79,252.72,20.0]
[1732304962280,6.5391,252.79,252.72,19.6043]
[1732304962667,6.5391,252.79,252.66,19.58237258]
[1732304964180,6.5391,252.79,252.65,197.26558986]
[1732304964381,6.5391,252.79,252.68,20.0]
[1732304964689,21.2772,252.85,252.68,20.0]
[1732304964895,21.2772,252.85,252.72,20.0]
[1732304966169,21.2772,252.85,252.73,3.943]
[1732304968190,21.2772,252.85,252.66,23.943]
[1732304968484,21.2772,252.85,252.7,23.943]
[1732304969115,6.262,252.85,252.73,23.776884]
[1732304969402,15.621,252.91,252.74,20.0]
[1732304969995,15.621,252.91,252.75,3.943]
[1732304970800,15.621,252.91,252.74,20.0]
[1732304970801,15.621,252.91,252.77,3.943]
[1732304971172,15.621,252.91,252.77,3.3052]
[1732304971589,15.621,252.91,252.75,2.6674]
[1732304973783,2.49999942,252.88,252.75,3.943]
[1732304973999,23.776884,252.87,252.67,20.0]
[1732304974503,23.776884,252.87,252.66,7.9275]
[1732304975012,23.776884,252.87,252.67,3.943]
[1732304976123,23.776884,252.87,252.69,23.943]
[1732304979204,15.621,252.91,252.74,20.0]
[1732304980113,15.621,252.91,252.75,3.943]
[1732304981131,15.621,252.91,252.77,3.943]
[1732304981811,15.621,252.91,252.78,27.719884]
[1732304982040,15.621,252.91,252.8,3.943]
[1732304983012,15.621,252.91,252.79,3.943]
[1732304984036,15.621,252.91,252.77,3.943]
[1732304984422,14.621,252.91,252.77,3.943]
[1732304984733,14.621,252.91,252.79,3.943]
[1732304988436,14.621,252.91,252.8,3.943]
[1732304988437,17.12099942,252.91,252.8,3.943]
[1732304988630,23.776884,252.9,252.8,3.943]
[1732304989413,23.776884,252.9,252.76,3.943]
[1732304989737,23.776884,252.9,252.76,23.943]
[1732304989915,6.1571,252.9,252.76,23.943]
[1732304992523,8.65709942,252.9,252.76,23.943]
[1732304992923,8.65709942,252.9,252.75,197.26558986]
[1732304992924,2.49999942,252.85,252.71,3.943]
[1732304994723,2.49999942,252.85,252.71,23.943]
[1732304996834,6.3421,252.82,252.71,23.943]
[1732304997035,6.3421,252.82,252.68,3.943]
[1732304997534,2.49999942,252.79,252.68,3.943]
[1732304998126,2.49999942,252.79,252.66,3.943]
[1732304998540,8.8421,252.82,252.68,3.943]
[1732304998931,6.3421,252.82,252.68,3.943]
[1732304999547,6.3421,252.82,252.67,3.943]
[1732305002534,6.3421,252.82,252.69,23.943]
[1732305003045,6.3421,252.82,252.71,23.943]
[1732305003241,6.3421,252.82,252.73,23.943]
[1732305003444,6.3421,252.82,252.75,3.943]
[1732305004549,6.3421,252.82,252.72,23.943]
[1732305004748,6.4135,252.88,252.76,47.719884]
[1732305006151,6.4135,252.88,252.77,3.943]
[1732305006359,8.91349942,252.88,252.77,3.943]
[1732305006574,2.49999942,252.86,252.77,3.943]
[1732305006746,2.49999942,252.84,252.77,3.943]
[1732305007071,6.4135,252.83,252.67,6.17408573]
[1732305007249,6.4135,252.83,252.68,3.943]
[1732305007453,6.4135,252.83,252.67,6.17408573]
[1732305007454,6.4135,252.83,252.67,3.943]
[1732305007770,6.4135,252.83,252.65,197.26558986]
[1732305007942,8.91349942,252.83,252.68,4.02407041]
[1732305008142,8.91349942,252.83,252.66,3.943]
[1732305008342,2.49999942,252.81,252.66,3.943]
[1732305009260,15.4372,252.8,252.66,23.943]
[1732305009451,15.4372,252.8,252.66,23.2612]
[1732305009856,2.49999942,252.74,252.6,6.17408573]
[1732305010056,2.49999942,252.74,252.59,12.34817147]
[1732305010057,2.49999942,252.72,252.58,6.17408573]
[1732305010264,2.49999942,252.66,252.55,6.17408573]
[1732305010459,4.99999942,252.68,252.55,197.26558986]
[1732305010775,2.49999942,252.68,252.55,197.26558986]
[1732305010963,2.49999942,252.66,252.56,3.943]
[1732305011575,16.5402,252.62,252.57,3.943]
[1732305011888,16.5402,252.62,252.5,3.943]
[1732305012749,16.5402,252.62,252.52,23.776884]
[1732305013080,16.5402,252.62,252.53,3.943]
[1732305013779,6.2069,252.65,252.56,20.0]
[1732305013949,6.2069,252.65,252.59,3.943]
[1732305014149,6.2069,252.65,252.59,23.943]
[1732305014562,6.2069,252.65,252.59,3.943]
[1732305014884,16.0161,252.68,252.61,23.943]
[1732305015090,16.0161,252.68,252.63,23.943]
[1732305015258,16.0161,252.68,252.63,3.943]
[1732305016076,16.0161,252.68,252.59,3.943]
[1732305016274,6.5039,252.71,252.61,3.943]
[1732305016474,6.5039,252.71,252.63,3.943]
[1732305017393,6.5039,252.71,252.58,23.776884]
[1732305017679,6.5039,252.71,252.59,3.943]
[1732305017856,6.5039,252.71,252.63,3.943]
[1732305018081,6.5039,252.71,252.64,3.943]
[1732305018900,6.5039,252.71,252.59,3.943]
[1732305019304,6.5039,252.71,252.63,23.943]
[1732305019485,6.5039,252.71,252.65,3.943]
[1732305020480,6.5039,252.71,252.6,3.943]
[1732305020681,6.5039,252.71,252.64,3.943]
[1732305020891,6.5039,252.71,252.66,23.943]
[1732305021101,6.5039,252.71,252.66,20.0]
[1732305021906,6.5039,252.71,252.67,3.943]
[1732305023782,16.6256,252.75,252.67,3.943]
[1732305023981,15.1666,252.81,252.68,0.59323105]
[1732305024607,15.1666,252.81,252.72,3.943]
[1732305024790,15.1666,252.81,252.72,23.943]
[1732305024992,6.4675,252.82,252.76,23.943]
[1732305025189,16.6493,252.87,252.76,23.943]
[1732305025384,16.6493,252.87,252.78,3.943]
[1732305025594,16.6493,252.87,252.78,23.943]
[1732305026016,16.6493,252.87,252.81,3.943]
[1732305026310,6.6221,252.88,252.86,3.943]
[1732305026503,16.1712,252.93,252.86,23.943]
[1732305028510,16.1712,252.93,252.86,20.0]
[1732305029520,16.1712,252.93,252.87,23.943]
[1732305029702,6.1666,252.95,252.87,23.943]
[1732305030090,6.1666,252.95,252.86,20.0]
[1732305030316,6.1666,252.95,252.87,23.776884]
[1732305030610,6.1666,252.95,252.89,3.943]
[1732305031113,6.1666,252.95,252.89,2.595989]
[1732305032210,16.4262,252.99,252.89,2.595989]
[1732305032417,16.4262,252.99,252.9,23.776884]
[1732305032617,16.4262,252.99,252.91,3.943]
[1732305033320,18.92619942,252.99,252.88,23.943]
[1732305033620,2.5,252.96,252.73,6.17657026]
[1732305033792,6.3557,252.92,252.72,6.17657026]
[1732305033992,6.3557,252.92,252.69,6.17657026]
[1732305034299,6.3557,252.92,252.68,8.9275]
[1732305034602,6.3557,252.92,252.82,3.943]
[1732305035399,6.3557,252.92,252.86,20.0]
[1732305036021,6.3557,252.92,252.76,23.943]
[1732305036324,6.3557,252.92,252.8,3.943]
[1732305037316,6.3557,252.92,252.76,3.943]
[1732305037317,16.4936,252.9,252.76,3.943]
[1732305037791,2.5,252.88,252.76,3.943]
[1732305037990,16.4936,252.9,252.76,3.943]
[1732305038495,16.4936,252.9,252.8,3.943]
[1732305039010,16.4936,252.9,252.76,23.776884]
[1732305039419,16.4936,252.9,252.77,20.0]
[1732305039593,16.4936,252.9,252.79,20.0]
[1732305040301,16.4936,252.9,252.8,23.776884]
[1732305040512,16.4936,252.9,252.79,23.943]
[1732305041016,16.4936,252.9,252.76,23.943]
[1732305042719,16.4936,252.9,252.75,197.26558986]
[1732305042720,16.4936,252.9,252.8,20.0]
[1732305042921,18.99359942,252.9,252.8,20.0]
[1732305043219,2.5,252.89,252.76,20.0]
[1732305043427,2.5,252.85,252.75,201.20858986]
[1732305043607,6.2052,252.84,252.75,201.20858986]
[1732305044298,6.2052,252.84,252.75,200.15058986]
[1732305044718,6.2052,252.84,252.75,196.94418986]
[1732305045122,6.2052,252.84,252.76,20.0]
[1732305045815,15.1082,252.82,252.71,3.943]
[1732305046118,4.99999942,252.81,252.71,3.943]
[1732305046321,4.99999942,252.81,252.71,3.5054]
[1732305046705,2.5,252.81,252.71,3.5054]
[1732305046906,15.1082,252.82,252.72,3.0678]
[1732305047340,17.6082,252.82,252.72,2.7243]
[1732305047904,17.6082,252.82,252.65,197.26558986]
[1732305047905,17.6082,252.82,252.68,2.3808]
[1732305048117,17.6082,252.82,252.7,22.3808]
[1732305048118,15.1082,252.82,252.7,22.3808]
[1732305048532,15.1082,252.82,252.72,22.3808]